bitfinex/quotes_SOLUSD_20240729
["timestamp","ask_amount","ask_price","bid_price","bid_amount"]
[1722296156465,51.2212,183.71,183.64,0.5]
[1722296156772,5.4451,183.65,183.64,0.5]
[1722296157088,5.4437,183.7,183.64,0.5]
[1722296157489,6.0512,183.81,183.65,22.3618]
[1722296157780,15.5434,183.82,183.65,22.3618]
[1722296157781,1.3609153,183.82,183.65,43.45053224]
[1722296157983,5.4414,183.78,183.66,20.0]
[1722296158189,5.4407,183.8,183.66,20.0]
[1722296158388,27.02059231,183.85,183.67,26.91847384]
[1722296158568,1.36043018,183.82,183.7,6.4067]
[1722296159169,5.4445,183.67,183.65,6.4067]
[1722296159389,39.2663,183.74,183.65,6.4067]
[1722296159582,1.36131379,183.73,183.65,6.4067]
[1722296159904,13.6091,183.7,183.64,0.5]
[1722296160191,5.4451,183.65,183.64,0.5]
[1722296160401,25.66,183.71,183.64,0.5]
[1722296160578,5.4445,183.68,183.64,0.5]
[1722296160779,6.80585895,183.67,183.64,0.5]
[1722296161189,5.4441,183.69,183.64,0.5]
[1722296161589,1.36127527,183.73,183.64,0.5]
[1722296161899,5.4427,183.73,183.64,0.5]
[1722296162082,1.36101681,183.72,183.64,0.5]
[1722296162283,5.4439,183.69,183.64,0.5]
[1722296162701,5.4436,183.71,183.64,0.5]
[1722296162999,5.443,183.73,183.64,0.5]
[1722296163177,45.17,183.72,183.64,0.5]
[1722296163380,5.4422,183.75,183.64,0.5]
[1722296164181,5.4425,183.74,183.64,0.5]
[1722296164407,5.4422,183.75,183.64,0.5]
[1722296165099,5.4422,183.75,183.65,22.0602]
[1722296165399,6.38943744,183.79,183.65,43.14882541]
[1722296165698,0.9480758,183.8,183.66,20.0]
[1722296165898,5.4422,183.75,183.66,20.0]
[1722296166101,5.4424,183.74,183.65,22.0602]
[1722296166585,5.4421,183.76,183.65,22.0602]
[1722296166793,5.4421,183.76,183.65,42.0602]
[1722296167013,5.4421,183.76,183.65,22.0602]
[1722296167190,5.4422,183.75,183.65,22.0602]
[1722296168708,5.4424,183.74,183.65,22.0602]
[1722296169983,5.4434,183.71,183.65,22.0602]
[1722296170417,5.4436,183.7,183.65,22.0602]
[1722296170788,46.36121993,183.69,183.64,0.5]
[1722296170988,5.4451,183.65,183.64,0.5]
[1722296171212,50.6151,183.65,183.64,0.5]
[1722296172304,76.2751,183.65,183.64,0.5]
[1722296173304,5.4478,183.56,183.54,21.5408]
[1722296173505,72.19183873,183.65,183.43,2.36686441]
[1722296173506,25.66,183.59,183.49,21.5408]
[1722296173689,1.36235864,183.58,183.49,21.5408]
[1722296174012,5.4484,183.54,183.49,21.5408]
[1722296174198,1.36232806,183.57,183.49,21.5408]
[1722296174199,1.36242331,183.53,183.49,21.5408]
[1722296174400,1.3624584,183.56,183.49,21.5408]
[1722296174631,0.17,183.55,183.49,21.5408]
[1722296174825,5.4491,183.52,183.49,21.5408]
[1722296175032,1.36247956,183.51,183.49,6.1543]
[1722296175930,0.17,183.55,183.49,6.1543]
[1722296175931,5.4485,183.54,183.49,6.1543]
[1722296176114,45.17,183.53,183.49,6.1543]
[1722296176314,1.36248386,183.52,183.44,15.3865]
[1722296176656,5.4499,183.49,183.44,15.3865]
[1722296177115,5.6195,183.51,183.44,15.3865]
[1722296178422,5.4496,183.5,183.44,15.3865]
[1722296179311,50.4489,183.53,183.44,15.3865]
[1722296179514,45.0,183.53,183.44,15.3865]
[1722296179902,45.0,183.53,183.44,16.47650223]
[1722296180099,0.17,183.52,183.44,15.3865]
[1722296180298,0.17,183.52,183.43,6.3436]
[1722296180522,5.4498,183.49,183.43,6.3436]
[1722296180724,0.17,183.52,183.43,6.3436]
[1722296180900,5.4493,183.51,183.43,6.3436]
[1722296181221,1.36256224,183.5,183.43,6.3436]
[1722296181406,5.4493,183.51,183.43,6.3436]
[1722296181805,5.4499,183.49,183.43,6.3436]
[1722296182010,5.4501,183.48,183.43,6.3436]
[1722296182317,5.45,183.49,183.43,6.3436]
[1722296182713,0.17,183.52,183.43,6.3436]
[1722296183128,5.4496,183.5,183.43,6.3436]
[1722296183627,45.0,183.53,183.43,6.3436]
[1722296184026,5.4492,183.51,183.43,6.3436]
[1722296186209,58.6224,183.53,183.43,6.3436]
[1722296186417,5.4506,183.47,183.43,6.3436]
[1722296186611,0.17,183.52,183.43,6.3436]
[1722296186612,5.4502,183.48,183.43,6.3436]
[1722296187024,5.4509,183.46,183.43,6.3436]
[1722296187229,5.451,183.45,183.43,6.3436]
[1722296187428,5.4514,183.44,183.4,16.3924]
[1722296187847,5.4509,183.46,183.4,16.3924]
[1722296188017,5.4509,183.46,183.41,1.09037745]
[1722296188223,0.17,183.52,183.4,16.3924]
[1722296188551,5.4499,183.49,183.4,16.3924]
[1722296188838,0.94951653,183.54,183.4,17.48253019]
[1722296189017,13.6187,183.58,183.42,20.0]
[1722296189318,5.4487,183.53,183.43,45.0]
[1722296189517,14.56797286,183.58,183.44,6.1211]
[1722296189518,5.4483,183.55,183.44,6.1211]
[1722296189734,5.4485,183.54,183.44,6.1211]
[1722296190314,5.4485,183.54,183.44,26.1211]
[1722296190523,5.4485,183.54,183.44,6.1211]
[1722296191152,5.4485,183.54,183.44,26.1211]
[1722296191329,5.4485,183.54,183.44,6.1211]
[1722296191529,5.4488,183.53,183.44,6.1211]
[1722296192050,5.451,183.45,183.44,6.1211]
[1722296192346,5.4507,183.46,183.44,6.1211]
[1722296192535,13.623,183.52,183.44,6.1211]
[1722296192744,5.4501,183.48,183.44,6.1211]
[1722296192958,45.17,183.51,183.44,6.1211]
[1722296193140,5.4502,183.48,183.44,6.1211]
[1722296193649,45.17,183.51,183.44,6.1211]
[1722296193856,5.4501,183.48,183.44,6.1211]
[1722296194327,5.4506,183.47,183.44,6.1211]
[1722296194956,45.17,183.51,183.44,6.1211]
[1722296195142,40.8572,183.57,183.44,6.1211]
[1722296195344,45.17,183.56,183.44,6.1211]
[1722296195540,5.4495,183.5,183.44,6.1211]
[1722296195935,1.36252186,183.49,183.44,6.1211]
[1722296196134,1.36266997,183.51,183.44,6.1211]
[1722296196335,5.4505,183.47,183.44,6.1211]
[1722296196534,5.4502,183.48,183.44,6.1211]
[1722296196737,5.4505,183.47,183.44,6.1211]
[1722296197456,5.4514,183.44,183.4,16.3924]
[1722296197747,5.4511,183.45,183.4,16.3924]
[1722296198455,5.4515,183.44,183.4,16.3924]
[1722296198840,0.17,183.46,183.4,16.3924]
[1722296198841,5.4522,183.41,183.4,16.3924]
[1722296199037,5.4519,183.42,183.4,16.3924]
[1722296199440,5.4519,183.42,183.39,6.1211]
[1722296199649,13.6246,183.5,183.39,6.1211]
[1722296199851,45.17,183.49,183.39,6.1211]
[1722296200155,5.4503,183.48,183.39,6.1211]
[1722296200350,5.4505,183.47,183.39,6.1211]
[1722296200549,6.81334764,183.47,183.39,6.1211]
[1722296200733,5.4505,183.47,183.39,6.1211]
[1722296201237,45.17,183.49,183.39,6.1211]
[1722296201445,13.6214,183.54,183.39,6.1211]
[1722296201764,14.98405236,183.54,183.4,16.5886]
[1722296202131,5.4502,183.48,183.4,16.5886]
[1722296202358,13.6235,183.51,183.4,16.5886]
[1722296202551,5.4507,183.47,183.4,16.5886]
[1722296202747,5.4502,183.48,183.4,16.5886]
[1722296202945,5.4515,183.44,183.4,16.5886]
[1722296203348,1.53301158,183.49,183.4,16.5886]
[1722296203543,5.4502,183.48,183.4,16.5886]
[1722296203946,5.4493,183.51,183.4,16.5886]
[1722296204272,5.4497,183.5,183.4,16.5886]
[1722296204670,5.4499,183.49,183.4,16.5886]
[1722296204844,5.4494,183.51,183.4,17.67863804]
[1722296205159,5.4496,183.5,183.4,16.5886]
[1722296205360,5.4493,183.51,183.41,1.0900243]
[1722296205538,5.4493,183.51,183.4,16.5886]
[1722296205539,5.4493,183.51,183.4,17.67861275]
[1722296205860,5.4493,183.51,183.4,16.5886]
[1722296206058,25.73,183.56,183.4,16.5886]
[1722296206059,5.4497,183.5,183.4,16.5886]
[1722296206455,45.0,183.55,183.4,16.5886]
[1722296206456,1.53266689,183.49,183.4,16.5886]
[1722296206681,27.0928315,183.53,183.4,16.5886]
[1722296206837,5.4508,183.46,183.4,16.5886]
[1722296207273,5.4517,183.43,183.4,16.5886]
[1722296207569,5.4513,183.45,183.4,16.5886]
[1722296209865,5.4514,183.44,183.4,16.5886]
[1722296210038,6.81431255,183.44,183.4,16.5886]
[1722296210238,5.4514,183.44,183.4,16.5886]
[1722296210855,6.81469567,183.43,183.4,16.5886]
[1722296211564,14.57517782,183.49,183.4,16.5886]
[1722296211747,5.4507,183.47,183.4,16.5886]
[1722296212475,1.53291233,183.46,183.4,16.5886]
[1722296212639,45.17,183.48,183.4,16.5886]
[1722296212839,5.4504,183.48,183.4,16.5886]
[1722296213272,5.4498,183.5,183.4,16.5886]
[1722296213572,5.4506,183.47,183.41,1.09006063]
[1722296213756,0.94970965,183.52,183.4,16.5886]
[1722296214148,5.4498,183.5,183.4,16.5886]
[1722296214549,0.94970965,183.52,183.4,16.5886]
[1722296214767,5.4498,183.5,183.4,16.5886]
[1722296215079,5.4496,183.5,183.4,16.5886]
[1722296215248,5.4499,183.49,183.4,16.5886]
[1722296215668,5.4502,183.48,183.4,16.5886]
[1722296216571,5.4498,183.5,183.4,16.5886]
[1722296216768,5.4492,183.52,183.41,45.0]
[1722296216966,5.4496,183.5,183.4,16.5886]
[1722296218064,5.4502,183.48,183.4,16.5886]
[1722296219175,5.4499,183.49,183.4,16.5886]
[1722296220056,13.6227,183.52,183.4,16.5886]
[1722296220260,46.53278437,183.51,183.4,16.5886]
[1722296220756,5.4507,183.47,183.4,16.5886]
[1722296221155,5.4511,183.45,183.4,16.5886]
[1722296221357,1.36274594,183.5,183.4,16.5886]
[1722296222265,5.4507,183.47,183.4,16.5886]
[1722296222662,5.4502,183.48,183.4,16.5886]
[1722296222963,40.71274572,183.56,183.4,16.5886]
[1722296223143,0.17,183.53,183.4,16.5886]
[1722296223345,1.53256084,183.53,183.4,16.5886]
[1722296223749,5.4487,183.53,183.41,42.6355]
[1722296223964,1.36244979,183.57,183.42,43.55535591]
[1722296224282,5.4481,183.55,183.43,45.0]
[1722296224449,5.4481,183.55,183.43,46.08982536]
[1722296224948,5.4489,183.53,183.43,45.0]
[1722296225155,1.36230404,183.52,183.42,22.4655]
[1722296225474,5.449,183.52,183.42,22.4655]
[1722296226168,13.6188,183.57,183.42,43.5554404]
[1722296226353,13.6188,183.57,183.44,15.5935]
[1722296226553,5.4484,183.54,183.44,15.5935]
[1722296226955,5.4479,183.56,183.44,15.5935]
[1722296227160,5.4481,183.55,183.45,27.64624208]
[1722296228270,5.4484,183.54,183.45,27.64624208]
[1722296228850,2.31140986,183.58,183.47,15.5935]
[1722296229046,5.4474,183.58,183.47,35.5935]
[1722296229267,5.4474,183.58,183.48,45.0]
[1722296229658,5.4475,183.57,183.48,45.0]
[1722296232374,14.97517766,183.65,183.5,35.4876]
[1722296232583,1.3616677,183.64,183.5,15.4876]
[1722296232792,14.5620767,183.65,183.51,1.08942701]
[1722296232953,14.5620767,183.65,183.52,6.5396]
[1722296233154,5.4463,183.61,183.52,6.5396]
[1722296233354,5.4469,183.59,183.52,6.5396]
[1722296233755,25.73,183.63,183.52,6.5396]
[1722296234166,5.4472,183.58,183.52,6.5396]
[1722296234361,5.4469,183.59,183.52,6.5396]
[1722296234575,25.73,183.63,183.52,6.5396]
[1722296235164,5.4468,183.6,183.52,6.5396]
[1722296235758,5.4469,183.59,183.52,6.5396]
[1722296236265,5.4472,183.58,183.52,6.5396]
[1722296236880,5.4469,183.59,183.52,6.5396]
[1722296237085,5.446,183.62,183.52,6.5396]
[1722296237384,0.17,183.64,183.52,6.5396]
[1722296237385,5.4469,183.59,183.52,6.5396]
[1722296237764,5.4466,183.6,183.53,1.08945292]
[1722296237965,5.4469,183.59,183.52,6.5396]
[1722296238168,0.17,183.61,183.52,6.5396]
[1722296238374,46.5319846,183.61,183.52,6.5396]
[1722296238889,5.4477,183.57,183.52,6.5396]
[1722296239478,5.4472,183.58,183.52,6.5396]
[1722296240289,5.4475,183.57,183.52,6.5396]
[1722296240464,5.4472,183.58,183.52,6.5396]
[1722296241084,5.4468,183.6,183.52,6.5396]
[1722296241760,5.4463,183.61,183.52,6.5396]
[1722296242181,5.4466,183.6,183.52,6.5396]
[1722296242382,5.4469,183.59,183.52,6.5396]
[1722296242586,5.4472,183.58,183.52,6.5396]
[1722296243083,5.447,183.59,183.52,6.5396]
[1722296243864,5.4466,183.6,183.52,6.5396]
[1722296244972,5.4461,183.62,183.52,6.5396]
[1722296245290,5.4463,183.61,183.52,6.5396]
[1722296245579,5.446,183.62,183.52,6.5396]
[1722296246168,5.4463,183.61,183.52,6.5396]
[1722296246568,5.446,183.62,183.52,7.62894863]
[1722296247169,5.446,183.62,183.52,6.5396]
[1722296247364,5.4463,183.61,183.52,6.5396]
[1722296247883,5.4457,183.64,183.53,62.57354338]
[1722296248069,5.446,183.62,183.53,62.57354338]
[1722296248265,5.446,183.62,183.53,61.4842]
[1722296250190,5.4462,183.62,183.53,61.4842]
[1722296251786,5.4457,183.63,183.53,61.4842]
[1722296251981,5.4457,183.63,183.53,81.4842]
[1722296252793,5.446,183.62,183.53,81.4842]
[1722296252973,5.4463,183.61,183.53,61.4842]
[1722296253171,13.6122,183.66,183.53,61.4842]
[1722296253485,1.53155248,183.65,183.53,16.4842]
[1722296253790,45.17,183.65,183.53,17.5735437]
[1722296254366,39.3422,183.66,183.53,17.5735437]
[1722296254565,5.4462,183.62,183.53,16.4842]
[1722296254766,5.4463,183.61,183.53,16.4842]
[1722296255382,5.4467,183.6,183.53,16.4842]
[1722296255573,40.70376924,183.66,183.53,16.4842]
[1722296255778,5.4466,183.6,183.53,16.4842]
[1722296255990,45.17,183.65,183.53,16.4842]
[1722296256482,5.4468,183.6,183.53,16.4842]
[1722296256889,45.0,183.65,183.53,16.4842]
[1722296257099,39.3422,183.66,183.53,16.4842]
[1722296257794,5.4457,183.63,183.53,16.4842]
[1722296263297,18.2857,183.63,183.55,12.84]
[1722296264694,12.84,183.62,183.55,12.84]
[1722296264990,18.2863,183.61,183.54,12.84]
[1722296265879,12.84,183.61,183.54,12.84]
[1722296266276,18.2863,183.61,183.54,12.84]
[1722296267199,18.2871,183.59,183.53,16.4842]
[1722296267386,12.84,183.58,183.53,16.4842]
[1722296267578,18.2871,183.59,183.53,16.4842]
[1722296267782,12.84,183.57,183.53,16.4842]
[1722296268179,12.84,183.58,183.53,16.4842]
[1722296269793,18.2872,183.58,183.53,16.4842]
[1722296270297,12.84,183.58,183.53,16.4842]
[1722296270497,18.2873,183.58,183.53,16.4842]
[1722296272085,12.84,183.59,183.53,16.4842]
[1722296272395,18.2862,183.62,183.55,12.84]
[1722296272882,5.4457,183.63,183.55,12.84]
[1722296273197,18.2857,183.63,183.55,12.84]
[1722296273395,18.2857,183.63,183.56,12.84]
[1722296274884,12.84,183.62,183.55,12.84]
[1722296275399,18.2857,183.63,183.55,12.84]
[1722296275694,18.2857,183.63,183.56,12.84]
[1722296276678,18.2857,183.63,183.53,16.4842]
[1722296276679,18.286,183.62,183.55,12.84]
[1722296278183,5.4457,183.63,183.55,12.84]
[1722296278477,12.84,183.62,183.55,12.84]
[1722296278678,18.2857,183.63,183.55,12.84]
[1722296279494,5.4466,183.6,183.53,16.4842]
[1722296279694,12.84,183.6,183.53,16.4842]
[1722296280001,13.6136,183.64,183.53,16.4842]
[1722296280217,12.84,183.59,183.53,16.4842]
[1722296280382,5.4478,183.57,183.53,16.4842]
[1722296280710,45.17,183.63,183.53,16.4842]
[1722296280711,12.84,183.56,183.53,16.4842]
[1722296280873,13.616,183.61,183.53,16.4842]
[1722296280874,18.2881,183.55,183.53,16.4842]
[1722296281078,5.4481,183.55,183.53,16.4842]
[1722296281383,5.4481,183.55,183.52,6.5396]
[1722296281588,12.84,183.56,183.52,6.5396]
[1722296281894,18.2878,183.56,183.52,6.5396]
[1722296282306,5.4481,183.55,183.52,6.5396]
[1722296282604,5.4481,183.55,183.49,28.4147]
[1722296282805,18.2881,183.55,183.49,15.5747]
[1722296283297,12.84,183.56,183.49,28.4147]
[1722296284191,18.2879,183.56,183.49,28.4147]
[1722296285680,5.4479,183.56,183.49,28.4147]
[1722296285884,19.8081,183.65,183.51,12.84]
[1722296286087,12.84,183.6,183.53,12.84]
[1722296286623,12.84,183.61,183.54,12.84]
[1722296289288,18.2864,183.61,183.54,12.84]
[1722296290710,18.2859,183.63,183.56,34.733]
[1722296291087,5.4461,183.62,183.56,34.733]
[1722296291378,5.4466,183.6,183.56,21.893]
[1722296292493,12.84,183.61,183.56,21.893]
[1722296293503,12.84,183.59,183.51,22.7243]
[1722296293688,5.4473,183.58,183.52,12.84]
[1722296294089,5.4475,183.57,183.51,35.5643]
[1722296294290,18.2875,183.57,183.51,22.7243]
[1722296294992,5.4478,183.56,183.51,22.7243]
[1722296295211,18.2878,183.56,183.51,22.7243]
[1722296296104,12.84,183.55,183.51,22.7243]
[1722296296508,12.84,183.55,183.51,16.2921]
[1722296297412,12.84,183.55,183.48,12.84]
[1722296297731,12.84,183.55,183.47,21.947]
[1722296297903,14.20222346,183.55,183.47,21.947]
[1722296298093,12.84,183.54,183.47,34.787]
[1722296298294,12.84,183.53,183.47,21.947]
[1722296299007,12.84,183.51,183.42,14.22112876]
[1722296299227,12.84,183.48,183.42,22.5929]
[1722296299518,12.84,183.45,183.37,35.4329]
[1722296299693,12.84,183.43,183.37,22.5929]
[1722296299889,12.84,183.42,183.37,22.5929]
[1722296301010,12.84,183.43,183.37,22.5929]
[1722296301214,12.84,183.42,183.37,22.5929]
[1722296302006,12.84,183.41,183.37,22.5929]
[1722296302894,12.84,183.42,183.37,22.5929]
[1722296303103,12.84,183.43,183.37,22.5929]
[1722296303301,12.84,183.41,183.36,0.7891325]
[1722296303521,12.84,183.4,183.36,0.7891325]
[1722296303824,12.84,183.41,183.36,0.7891325]
[1722296305306,12.84,183.43,183.36,13.6291325]
[1722296306413,19.65478644,183.43,183.36,0.7891325]
[1722296306751,12.84,183.43,183.36,13.6291325]
[1722296307033,18.2916,183.43,183.36,0.7891325]
[1722296308002,19.65510758,183.42,183.36,0.7891325]
[1722296308609,12.84,183.41,183.36,0.7891325]
[1722296309006,12.84,183.42,183.36,0.7891325]
[1722296309215,12.84,183.43,183.36,13.6291325]
[1722296309420,18.2914,183.44,183.36,13.6291325]
[1722296309625,18.2914,183.44,183.37,12.84]
[1722296309929,1.36310603,183.43,183.37,12.84]
[1722296310119,18.2914,183.44,183.37,12.84]
[1722296310317,18.2914,183.44,183.36,0.7891325]
[1722296310318,18.2914,183.44,183.36,13.6291325]
[1722296310702,5.4511,183.45,183.36,13.6291325]
[1722296310921,12.84,183.44,183.36,13.6291325]
[1722296311131,12.84,183.45,183.38,28.5072]
[1722296311609,12.84,183.46,183.39,12.84]
[1722296311812,12.84,183.47,183.4,12.84]
[1722296312211,12.84,183.48,183.41,12.84]
[1722296312412,12.84,183.49,183.41,12.84]
[1722296312627,1.36263456,183.48,183.41,12.84]
[1722296312827,12.84,183.49,183.41,12.84]
[1722296313009,6.81309828,183.48,183.39,6.661]
[1722296313209,19.65309828,183.48,183.41,12.84]
[1722296315644,5.4509,183.46,183.39,19.501]
[1722296315818,14.20269827,183.47,183.39,6.661]
[1722296315819,12.84,183.44,183.39,6.661]
[1722296316017,12.84,183.41,183.36,0.7891325]
[1722296316234,12.84,183.42,183.36,0.7891325]
[1722296316535,19.65476839,183.43,183.36,0.7891325]
[1722296316741,5.452,183.42,183.36,0.7891325]
[1722296317613,18.2917,183.43,183.36,0.7891325]
[1722296318146,18.2917,183.43,183.36,13.6291325]
[1722296318835,12.84,183.43,183.36,13.6291325]
[1722296319012,5.452,183.42,183.36,13.6291325]
[1722296319211,5.452,183.42,183.36,0.7891325]
[1722296320835,6.81510422,183.42,183.36,0.7891325]
[1722296321135,1.36310422,183.42,183.36,0.7891325]
[1722296321311,14.20324079,183.41,183.36,0.7891325]
[1722296321714,12.84,183.41,183.36,0.7891325]
[1722296322143,12.84,183.42,183.36,0.7891325]
[1722296322332,6.81572613,183.41,183.36,0.7891325]
[1722296322647,5.4526,183.4,183.36,0.7891325]
[1722296322820,58.6271,183.46,183.36,0.7891325]
[1722296322821,12.84,183.39,183.36,0.7891325]
[1722296323225,12.84,183.38,183.36,0.7891325]
[1722296323811,18.2931,183.38,183.36,0.7891325]
[1722296324344,5.4531,183.38,183.36,0.7891325]
[1722296324842,18.2929,183.39,183.36,0.7891325]
[1722296327845,18.2931,183.38,183.36,0.7891325]
[1722296329122,12.84,183.38,183.36,0.7891325]
[1722296329347,12.84,183.39,183.36,0.7891325]
[1722296330647,18.2928,183.39,183.36,0.7891325]
[1722296332036,12.84,183.38,183.36,0.7891325]
[1722296332222,18.2934,183.37,183.36,0.7891325]
[1722296340246,0.95024872,183.42,183.36,0.7891325]
[1722296340545,5.4531,183.38,183.36,0.7891325]
[1722296340754,18.2931,183.38,183.36,0.7891325]
[1722296341638,5.4534,183.37,183.36,0.7891325]
[1722296342240,12.84,183.38,183.36,0.7891325]
[1722296342644,18.2932,183.38,183.36,0.7891325]
[1722296343929,18.2934,183.37,183.36,0.7891325]
[1722296345048,5.4534,183.37,183.36,0.7891325]
[1722296345255,63.4634,183.37,183.36,0.7891325]
[1722296345550,77.097,183.37,183.36,0.7891325]
[1722296346248,78.46092516,183.37,183.36,0.7891325]
[1722296346432,5.455,183.32,183.26,21.3674]
[1722296346626,12.84,183.3,183.26,21.3674]
[1722296347126,12.84,183.3,183.26,15.0189]
[1722296347350,74.8689,183.37,183.22,22.5027]
[1722296347351,14.20415194,183.29,183.22,22.5027]
[1722296347551,12.84,183.28,183.22,22.5027]
[1722296349357,12.84,183.25,183.18,8.98847902]
[1722296349645,12.84,183.26,183.19,12.84]
[1722296349852,1.36433413,183.26,183.19,12.84]
[1722296350039,14.20433413,183.26,183.18,0.7891325]
[1722296350233,12.84,183.24,183.18,0.7891325]
[1722296351154,12.84,183.25,183.18,13.6291325]
[1722296351850,14.2043872,183.24,183.18,0.7891325]
[1722296352357,12.84,183.24,183.18,0.7891325]
[1722296352544,5.4554,183.31,183.22,12.84]
[1722296352744,12.84,183.3,183.23,12.84]
[1722296354061,1.36415744,183.29,183.23,12.84]
[1722296354277,14.20415757,183.29,183.21,12.84]
[1722296354439,0.17,183.28,183.21,12.84]
[1722296354634,12.84,183.29,183.21,12.84]
[1722296354840,12.84,183.3,183.23,28.9427]
[1722296355042,12.84,183.31,183.24,12.84]
[1722296356682,5.4549,183.32,183.23,28.9427]
[1722296356683,12.84,183.3,183.23,28.9427]
[1722296357253,12.84,183.31,183.24,12.84]
[1722296357783,1.36402208,183.35,183.28,12.84]
[1722296357784,12.84,183.35,183.28,12.84]
[1722296358580,12.84,183.36,183.29,12.84]
[1722296358888,12.84,183.37,183.3,12.84]
[1722296359051,12.84,183.39,183.31,34.6983]
[1722296359381,12.84,183.4,183.33,12.84]
[1722296359682,12.84,183.37,183.31,21.8583]
[1722296360181,12.84,183.36,183.31,21.8583]
[1722296360672,12.84,183.37,183.31,21.8583]
[1722296360849,12.84,183.38,183.31,21.8583]
[1722296361598,12.84,183.39,183.31,34.6983]
[1722296361891,12.84,183.38,183.31,21.8583]
[1722296362177,12.84,183.37,183.31,21.8583]
[1722296362587,12.84,183.38,183.31,21.8583]
[1722296362791,12.84,183.39,183.31,34.6983]
[1722296363282,12.84,183.4,183.33,12.84]
[1722296363956,12.84,183.41,183.34,12.84]
[1722296364884,12.84,183.42,183.34,12.84]
[1722296365388,18.2919,183.42,183.34,12.84]
[1722296365787,5.4519,183.42,183.34,12.84]
[1722296365972,5.4519,183.42,183.31,22.94886377]
[1722296365973,12.84,183.43,183.36,12.84]
[1722296366157,18.2914,183.44,183.37,12.84]
[1722296366359,12.84,183.44,183.37,12.84]
[1722296367371,18.2914,183.44,183.36,12.84]
[1722296367569,12.84,183.43,183.36,12.84]
[1722296368679,12.84,183.42,183.35,12.84]
[1722296369084,12.84,183.43,183.36,12.84]
[1722296369266,18.2914,183.44,183.36,12.84]
[1722296370274,12.84,183.44,183.36,12.84]
[1722296370863,5.4505,183.47,183.38,12.84]
[1722296371064,0.94975403,183.49,183.39,27.9127]
[1722296371277,12.84,183.47,183.4,12.84]
[1722296371486,6.81300433,183.48,183.39,27.9127]
[1722296371487,12.84,183.46,183.39,27.9127]
[1722296374581,12.84,183.44,183.39,15.0727]
[1722296374987,5.451,183.46,183.4,12.84]
[1722296375174,18.2905,183.47,183.4,12.84]
[1722296376189,12.84,183.47,183.4,12.84]
[1722296377305,14.20284528,183.46,183.39,15.0727]
[1722296377513,19.65364528,183.46,183.39,15.0727]
[1722296377794,12.84,183.45,183.39,15.0727]
[1722296378180,18.291,183.45,183.39,15.0727]
[1722296378384,12.84,183.45,183.39,15.0727]
[1722296378693,12.84,183.46,183.39,15.0727]
[1722296378883,12.84,183.46,183.39,27.9127]
[1722296379278,18.2907,183.47,183.4,12.84]
[1722296380581,12.84,183.46,183.39,27.9127]
[1722296380789,5.4507,183.47,183.39,27.9127]
[1722296380988,1.36284518,183.46,183.39,27.9127]
[1722296381177,14.20284531,183.45,183.39,15.0727]
[1722296381377,19.65443569,183.44,183.33,22.3841]
[1722296381687,12.84,183.41,183.34,12.84]
[1722296381884,12.84,183.42,183.35,12.84]
[1722296382091,5.4516,183.44,183.36,12.84]
[1722296382298,12.84,183.43,183.36,12.84]
[1722296382494,12.84,183.44,183.37,12.84]
[1722296383583,18.2915,183.44,183.37,12.84]